Workbook

Sheet Arkusz1 (2)
B1: pola kture należy wypełnić
B2: pola kture zostaną obliczone automatycznie
A6: Wynagrodzenie osobowe pracowników tab 1 | G6: Honoraria (umowy zlecenie i o dzieło) tab2
A7: L.p | B7: Imię i nazwisko pracownika (lub funkcja prłniona w zespole projektowym | C7: liczba godzin pracy | D7: sawka za godzinę | E7: kwota wynagrodzenia | G7: L.p | H7: Imię i nazwisko pracownika (lub funkcja prłniona w zespole projektowym | I7: =C7 -> liczba godzin pracy | J7: =D7 -> sawka za godzinę | K7: =E7 -> kwota wynagrodzenia
A8: 1 | E8: =C8*D8 -> 0 | G8: =A8 -> 1 | K8: =I8*J8 -> 0
A9: 2 | E9: =C9*D9 -> 0 | G9: =A9 -> 2 | K9: =I9*J9 -> 0
A10: 3 | E10: 0 | G10: 3 | K10: 0
A11: 4 | E11: 0 | G11: 4 | K11: 0
A12: 5 | E12: 0 | G12: 5 | K12: 0
A13: 6 | E13: 0 | G13: 6 | K13: 0
A14: 7 | E14: 0 | G14: 7 | K14: 0
A15: 8 | E15: 0 | G15: 8 | K15: 0
A16: 9 | E16: 0 | G16: 9 | K16: 0
A17: 10 | E17: 0 | G17: 10 | K17: 0
A18: 11 | E18: 0 | G18: 11 | K18: 0
A19: 12 | E19: 0 | G19: 12 | K19: 0
A20: 13 | E20: 0 | G20: 13 | K20: 0
A21: 14 | E21: 0 | G21: 14 | K21: 0
A22: 15 | E22: 0 | G22: 15 | K22: 0
A23: 16 | E23: 0 | G23: 16 | K23: 0
A24: 17 | E24: 0 | G24: 17 | K24: 0
A25: 18 | E25: 0 | G25: 18 | K25: 0
A26: 19 | E26: 0 | G26: 19 | K26: 0
A27: 20 | E27: 0 | G27: 20 | K27: 0
A28: 21 | E28: 0 | G28: 21 | K28: 0
A29: 22 | E29: 0 | G29: 22 | K29: 0
A30: 23 | E30: 0 | G30: 23 | K30: 0
A31: 24 | E31: 0 | G31: 24 | K31: 0
A32: 25 | E32: 0 | G32: 25 | K32: 0
A33: 26 | E33: 0 | G33: 26 | K33: 0
A34: 27 | E34: 0 | G34: 27 | K34: 0
A35: 28 | E35: 0 | G35: 28 | K35: 0
A36: 29 | E36: 0 | G36: 29 | K36: 0
A37: 30 | E37: 0 | G37: 30 | K37: 0
A38: 31 | E38: 0 | G38: 31 | K38: 0
A39: 32 | E39: 0 | G39: 32 | K39: 0
A40: 33 | E40: 0 | G40: 33 | K40: 0
A41: 34 | E41: 0 | G41: 34 | K41: 0
B42: Razem | C42: =SUM(C8:C41) -> 0 | D42: =SUM(D8:D41) -> 0 | E42: 0 | H42: Razem | I42: =SUM(I8:I41) -> 0 | J42: =SUM(J8:J41) -> 0 | K42: 0
A48: Kalkulacja Kosztów Projektu
A49: L.p | B49: Opis | D49: współczynik | E49: Koszty
A50: 1 | B50: Wynagrodzenia osobowe | E50: 120198
A51: 2 | B51: honoraria (umowy zlec. I o dzieło) | E51: =$K$42 -> 0
A52: 3 | B52: dodatk. Wynagrodzenie roczne (np.13 pencja) (od poz.1) | D52: 0.085 | E52: =$E$50*$D$52 -> 10216.83
A53: 4 | B53: razem: (poz. 1-3) | E53: =SUM($E$50:$E$52) -> 130414.83
A54: 5 | B54: Wartość składek ZUS (od poz. 4) | D54: 0.1964 | E54: =$D$54*$E$53 -> 25613.47261
A55: 6 | B55: koszty delegacji
A56: 7 | B56: koszty usług obcych | E56: 2630
A57: 8 | B57: materiały | E57: 75500
A58: 9 | B58: inne koszty (np. promocja)
A59: 10 | B59: razem (poz. 5-9 | E59: =SUM($E$54:$E$58) -> 103743.4726
A60: 11 | B60: Koszty wydziałowe (od poz. 10) | D60: 0.18 | E60: =$D$60*$E$59 -> 18673.82507
A61: 12 | B61: koszty ogulne (od poz. 10) | D61: 0.12 | E61: =$D$61*$E$59 -> 12449.21671
A62: 13 | B62: Razem (poz. 11-12) | E62: =SUM($E$60:$E$61) -> 31123.04178
A63: 14 | B63: zysk min. (od poz. 13) | D63: 0.05 | E63: =$E$62*$D$63 -> 1556.152089 | G63: =E64+E62 -> 63802.23566
A64: 15 | B64: ogółem (poz. 13-14) | E64: =SUM($E$62:$E$63) -> 32679.19387
B66: Koszt realizacji projektu | D66: =E53+E59+E64 -> 266837.4965
E68: =120198+D52*120198 -> 130414.83 | G68: B
E69: =E56+E57 -> 78130 | G69: C
E70: =D54*E68+(D60*(E69+D54*E69)+D61*(E69+D54*E69))*1.05 -> 55058.01319 | F70: =E68*D54+0.18*(E69+E68*D54)+0.12*(E69+E68*D54)+0.05*(0.18*(E69+E68*D54)+0.12*(E69+E68*D54)) -> 58292.66648 | G70: D
E71: =E68+E69+E70 -> 263602.8432 | F71: =E68+F70+E69 -> 266837.4965 | G71: E

Sheet Arkusz2

Sheet Arkusz3
